Cogmind - Beta 12 @@@ ROGUE MODE // 2023.10.09 @ 13:23:32 Player: ChromeKnight Result: Destroyed by G-47 Trooper with Particle Gun Performance ------------- Evolutions (2) 1000 Regions Visited (4) 800 Robots Destroyed (40) 200 Value Destroyed (1109) 1109 Prototype IDs (2) 40 Alien Tech Used (0) 0 Bonus (0) 0 TOTAL SCORE: 3149 Bonus ------- None Cogmind --------- Core Integrity 0/550 Matter 190/300 Energy 100/100 System Corruption 0% Temperature Cool (9) Movement Core (750) Ox14 Location -8/Materials Parts ------- > --- POWER (1) -------- (None) > --- PROPULSION (3) --- (None) > --- UTILITY (5) ------ High-capacity Storage Unit Visual Processing Unit Utility Shielding Utility Shielding > --- WEAPON (2) ------- Mini Grenade Launcher > --- INVENTORY (20) --- Deuterium Engine Deuterium Engine Combat Airjet Small Storage Unit Medium Storage Unit Large Matter Pod (150) Faulty Experimental Sensor Array Actuator Array Propulsion Shielding Heavy Armor Plating Heavy Armor Plating Heavy Armor Plating Improved Light Armor Plating Shotgun Shotgun Peak State ------------ > --- POWER ------------ Deuterium Engine > --- PROPULSION ------- Aluminum Leg Aluminum Leg Aluminum Leg > --- UTILITY ---------- High-capacity Storage Unit Visual Processing Unit Utility Shielding > --- WEAPON ----------- Light Assault Rifle Rocket Launcher > --- INVENTORY -------- Deuterium Engine Deuterium Engine Aluminum Leg Aluminum Leg Combat Airjet Small Storage Unit Medium Storage Unit Large Matter Pod Experimental Sensor Array Actuator Array Propulsion Shielding Utility Shielding Heavy Armor Plating Heavy Armor Plating Heavy Armor Plating Mini Grenade Launcher Mini Grenade Launcher [Rating: 18] Favorites ----------- Power Light Ion Engine Engine Light Ion Engine Propulsion Aluminum Leg Treads Light Treads Leg Aluminum Leg Wheel Compact Wheel Utility High-capacity Storage Unit Storage High-capacity Storage Unit Processor Visual Processing Unit Protection Utility Shielding Weapon Light Assault Rifle Ballistic Gun Light Assault Rifle Launcher Rocket Launcher Special Weapon Plasma Cutter Build | -11 -10 -10 -9 -8 ------- Run | Jun Mat Min Mat Mat Slots Evolved 4 | . . . 2 2 Power . | . . . . . Propulsion 1 | . . . 1 . Utility 3 | . . . 1 2 Weapon . | . . . . . Parts Attached 37 | 8 3 7 12 7 Power 3 | 1 . . 2 . Engine 3 | 1 . . 2 . Core . | . . . . . Reactor . | . . . . . Propulsion 15 | 4 . 3 6 2 Treads 2 | 2 . . . . Leg 12 | 2 . 2 6 2 Wheel 1 | . . 1 . . Hover . | . . . . . Flight . | . . . . . Utility 8 | 1 3 . 3 1 Device . | . . . . . Storage 4 | 1 2 . 1 . Processor 1 | . 1 . . . Hackware . | . . . . . Protection 3 | . . . 2 1 Artifact . | . . . . . Weapon 11 | 2 . 4 1 4 Energy Gun . | . . . . . Energy Cannon . | . . . . . Ballistic Gun 7 | 2 . 4 . 1 Ballistic Cannon . | . . . . . Launcher 3 | . . . 1 2 Special Weapon 1 | . . . . 1 Impact Weapon . | . . . . . Slashing Weapon . | . . . . . Piercing Weapon . | . . . . . Special Melee Weapon . | . . . . . Unidentified Prototypes . | . . . . . Parts Lost 17 | . . 5 1 11 Power 2 | . . 1 . 1 Propulsion 6 | . . 1 . 5 Utility . | . . . . . Weapon 9 | . . 3 1 5 Highest Loss Streak 11 | . . 5 1 11 To Critical Strikes 1 | . . 1 . . Average Slot Usage (%) 86 | . 94 81 88 70 Engine 9 | . 14 2 9 7 Treads 11 | . 28 7 . . Leg 14 | . . 13 29 22 Storage 12 | . 14 14 11 9 Processor 10 | . 8 14 11 9 Protection 3 | . . . 6 10 Ballistic Gun 21 | . 28 26 16 6 Launcher 1 | . . . 2 6 Naked Turns . | . . . . . Heaviest Build 55 | 10 50 45 55 55 Greatest Support 40 | 40 40 40 30 30 Greatest Overweight (x) 13 | . 1 4 4 13 Average Overweight (x) 1 | . . 1 1 1 Largest Inventory Capacity 25 | 8 25 20 20 20 Average Capacity 18 | 7 18 20 20 20 Most Carried 20 | 2 14 15 20 20 Average Carried 13 | . 9 12 17 19 Final Capacity 20 | 8 20 20 20 20 Final Carried 19 | 2 14 15 19 18 Class Distribution -------------------- 53% | Mutant 46% | Scavenger-Mutant Dominant Class ---------------- Mutant | -10/Materials Scavenger-Mutant | -10/Mines Scavenger-Mutant | -9/Materials Scavenger-Mutant | -8/Materials Resources | -11 -10 -10 -9 -8 ----------- Run | Jun Mat Min Mat Mat Matter Collected 974 | 262 286 139 216 71 Remotely . | . . . . . Salvage Created 1111 | . 278 163 381 289 Parts 56 | . 19 6 22 9 Haulers Intercepted . | . . . . . Recyclers Shooed 5 | . 1 3 . 1 Parts Field Recycled . | . . . . . Retrieved Matter . | . . . . . Parts Self-Destructed . | . . . . . Prevented . | . . . . . Kills | -11 -10 -10 -9 -8 ------- Run | Jun Mat Min Mat Mat Combat Hostiles Destroyed 32 | . 3 9 9 11 Guns 16 | . 3 9 4 . AOE 16 | . . . 5 11 Classes Destroyed 10 | . 6 1 3 . Worker 5 | . 2 . 1 2 Recycler 3 | . 1 . . 2 Mechanic 1 | . 1 . . . Operator 1 | . . . 1 . Watcher 2 | . 1 . . 1 Swarmer 7 | . 1 3 . 3 Grunt 17 | . 2 2 6 7 Duelist 1 | . . . 1 . Sentry 3 | . . . 2 1 Assembled 4 | . . 4 . . Best Kill Streak 11 | . 2 4 5 11 Combat Bots Only 9 | . 2 4 5 9 Max Kills in Single Turn 5 | . 1 1 2 5 Gunslinging . | . . . . . Exploded 3 | . . . 2 3 Melee . | . . . . . Uniques/NPCs Destroyed . | . . . . . Combat | -11 -10 -10 -9 -8 -------- Run | Jun Mat Min Mat Mat Damage Taken 2993 | . 171 567 692 1563 Core 904 | . 29 113 199 563 Absorbed by Shields . | . . . . . Redirected to Shielding 132 | . . . 56 76 Core Remaining (%) 64 | 100 . 43 50 . Volleys Fired 131 | . 44 36 40 11 Largest 2 | . 2 2 2 2 Hottest 53 | . 40 40 53 53 Shots Fired 218 | . 88 60 57 13 Gun 200 | . 88 60 50 2 Cannon . | . . . . . Launcher 17 | . . . 7 10 Special 1 | . . . . 1 Kinetic 200 | . 88 60 50 2 Thermal 1 | . . . . 1 Explosive 17 | . . . 7 10 Electromagnetic . | . . . . . Robot Hit Streak 14 | . 6 7 14 7 Robot Miss Streak 3 | . 3 2 3 1 Penetration Max . | . . . . . Secondary Targets . | . . . . . Shots Hit Robots 141 | . 56 39 36 10 Core Hits 106 | . 23 20 25 38 Critical Kills . | . . . . . Critical Parts Destroyed 2 | . . 1 1 . Critical Strikes 2 | . . 1 1 . Destroy 2 | . . 1 1 . Melee Attacks . | . . . . . Impact . | . . . . . Slashing . | . . . . . Piercing . | . . . . . Sneak Attacks . | . . . . . Combat Hostiles . | . . . . . Follow-up Attacks . | . . . . . Damage Inflicted 3431 | . 452 376 566 2037 Guns 1134 | . 452 376 297 9 Cannons . | . . . . . Explosions 2293 | . . . 269 2024 Melee . | . . . . . Ramming 4 | . . . . 4 Kinetic 1134 | . 452 376 297 9 Thermal . | . . . . . Explosive 2293 | . . . 269 2024 Electromagnetic . | . . . . . Impact . | . . . . . Slashing . | . . . . . Piercing . | . . . . . Highest Corruption 9 | . . . 9 . Average Corruption 6 | . . . 6 . Corruption Purged . | . . . . . Corruption Blocked . | . . . . . Effects 16 | . . . 16 . Message Errors 4 | . . . 4 . Matter Fused 3 | . . . 3 . Heat Flow Errors 3 | . . . 3 . Energy Discharges 1 | . . . 1 . Data Loss (minor) 3 | . . . 3 . Data Loss (major) 2 | . . . 2 . Overload Shots . | . . . . . Overflow Damage 77 | . . . . 77 Projectiles . | . . . . . Explosions 77 | . . . . 77 Melee . | . . . . . Knockbacks . | . . . . . Impact . | . . . . . Kinetic . | . . . . . Secondary . | . . . . . Self-Inflicted Damage 212 | . . . . 212 Shots 5 | . . . . 5 Rammed . | . . . . . Targets Rammed 2 | . . . . 2 Kicked 2 | . . . . 2 Crushed . | . . . . . Highest Temperature 210 | . 25 27 210 24 Average Temperature 33 | . 11 10 54 15 Received Heat Transfer 912 | . 72 153 138 549 Siege Activations . | . . . . . Robots Corrupted . | . . . . . Combat Hostiles . | . . . . . Parts Fried . | . . . . . Impact Corruptions . | . . . . . Robots Melted . | . . . . . Combat Hostiles . | . . . . . Parts Melted . | . . . . . Heat Transferred . | . . . . . Parts Sabotaged . | . . . . . Parts Stolen . | . . . . . Parts Stripped . | . . . . . Power Chain Reactions . | . . . . . Missiles Intercepted . | . . . . . Alert | -11 -10 -10 -9 -8 ------- Run | Jun Mat Min Mat Mat Peak Influence 392 | . 100 139 242 392 Initial 102 | . . 39 . 102 Average 73 | . 28 103 98 119 Maximum Alert Level 1 | . . . 1 1 Low Security (%) 93 | 100 100 100 79 95 Level 1 6 | . . . 20 4 Level 2 . | . . . . . Level 3 . | . . . . . Level 4 . | . . . . . Level 5 . | . . . . . High Security . | . . . . . Max Security . | . . . . . Squads Dispatched 4 | . . . 2 2 Investigation 1 | . . . . 1 Extermination . | . . . . . Reinforcement 3 | . . . 2 1 Assault . | . . . . . Garrison . | . . . . . Intercept . | . . . . . Searches Triggered . | . . . . . Construction Impeded . | . . . . . Haulers Reinforced . | . . . . . Active Scanning Responses . | . . . . . Cargo Convoy Interrupts . | . . . . . Stealth | -11 -10 -10 -9 -8 --------- Run | Jun Mat Min Mat Mat Distress Signals 6 | . 1 . 4 1 Communications Jammed . | . . . . . Distress Signals . | . . . . . Times Spotted 51 | . 11 9 15 16 Peak Tracking Total 11 | . 3 5 4 11 Tactical Retreats 2 | . . . 2 . Traps | -11 -10 -10 -9 -8 ------- Run | Jun Mat Min Mat Mat Traps Triggered 8 | . . . 7 1 Indirectly . | . . . . . Trap Hack Attempts . | . . . . . Triggered . | . . . . . Disarmed . | . . . . . Reprogrammed . | . . . . . Reused . | . . . . . Traps Extracted . | . . . . . Installed . | . . . . . Triggered . | . . . . . Machines | -11 -10 -10 -9 -8 ---------- Run | Jun Mat Min Mat Mat Machines Disabled 4 | . . . 2 2 Max in Single Turn 1 | . . . 1 1 Machines Repaired . | . . . . . Machines Sabotaged . | . . . . . Overloaded Fab Kills . | . . . . . Hacking | -11 -10 -10 -9 -8 --------- Run | Jun Mat Min Mat Mat Machines Accessed 1 | . . . 1 . Terminals 1 | . . . 1 . Fabricators . | . . . . . Repair Stations . | . . . . . Recycling Units . | . . . . . Scanalyzers . | . . . . . Garrison Access . | . . . . . Total Hacks 4 | . . . 4 . Successful 3 | . . . 3 . Failed 1 | . . . 1 . Catastrophic 1 | . . . 1 . Database Lockouts . | . . . . . Manual 2 | . . . 2 . Terminals 4 | . . . 4 . Fabricators . | . . . . . Repair Stations . | . . . . . Recycling Units . | . . . . . Scanalyzers . | . . . . . Garrison Access . | . . . . . Terminal Hacks 2 | . . . 2 . Prototype ID Bank 1 | . . . 1 . Zone Layout 1 | . . . 1 . Fabricator Hacks . | . . . . . Repair Station Hacks . | . . . . . Recycling Unit Hacks . | . . . . . Scanalyzer . | . . . . . Garrison Access Hacks . | . . . . . Unauthorized Hacks 1 | . . . 1 . Terminals 1 | . . . 1 . Assimilate 1 | . . . 1 . Fabricators . | . . . . . Repair Stations . | . . . . . Recycling Units . | . . . . . Scanalyzers . | . . . . . Garrison Access . | . . . . . Data Cores Recovered . | . . . . . Used . | . . . . . Hacking Detections 1 | . . . 1 . Full Trace Events . | . . . . . Feedback Events . | . . . . . Feedback Blocked . | . . . . . Robot Schematics Acquired . | . . . . . Robots Built . | . . . . . Authchips . | . . . . . Time . | . . . . . Total Robot Build Rating . | . . . . . Part Schematics Acquired . | . . . . . Parts Built . | . . . . . Authchips . | . . . . . Time . | . . . . . Total Part Build Rating . | . . . . . Parts Repaired . | . . . . . Time . | . . . . . Parts Recycled . | . . . . . Recycled Matter . | . . . . . Retrieved Matter . | . . . . . Retrieved Components . | . . . . . Parts Scanalyzed . | . . . . . Part Schematics Acquired . | . . . . . Parts Damaged . | . . . . . Bothacking | -11 -10 -10 -9 -8 ------------ Run | Jun Mat Min Mat Mat Used RIF Installer . | . . . . . Robots Hacked . | . . . . . Non-combat . | . . . . . Combat . | . . . . . Robot Hacks Applied . | . . . . . Relay Couplers Released . | . . . . . Fabnet Peak Effective % . | . . . . . Robots Rewired . | . . . . . Allies Hacked . | . . . . . Hacks Repelled . | . . . . . Allies | -11 -10 -10 -9 -8 -------- Run | Jun Mat Min Mat Mat Total Allies . | . . . . . Largest Group . | . . . . . Highest-Rated Group . | . . . . . Highest-Rated Ally . | . . . . . Total Orders . | . . . . . Ally Attacks . | . . . . . Total Damage . | . . . . . Kills . | . . . . . Allies Corrupted . | . . . . . Allies Melted . | . . . . . Intel | -11 -10 -10 -9 -8 ------- Run | Jun Mat Min Mat Mat Robot Analysis Total . | . . . . . Derelict Logs Recovered . | . . . . . Drone Launches . | . . . . . Drone Recoveries . | . . . . . Exploration | -11 -10 -10 -9 -8 ------------- Run | Jun Mat Min Mat Mat Turns Passed 2131 | 84 731 425 622 269 Spaces Moved 823 | 58 264 130 259 112 Core 8 | 7 . . . 1 Treads 310 | 18 264 28 . . Legs 455 | 33 . 73 238 111 Wheels 50 | . . 29 21 . Hover . | . . . . . Flight . | . . . . . Fastest Speed 50 | 50 160 130 130 190 Average Speed 205 | 123 225 235 188 205 Slowest Speed 700 | 160 240 400 400 700 Overloaded Moves . | . . . . . Propulsion Burnouts . | . . . . . Robots Hopped . | . . . . . Cave-ins Triggered . | . . . . . Exploration Rate (%) 27 | 5 36 43 34 18 Regions Visited 4 Branch Regions 1 Pre-discovered Areas . | . . . . . Known Exits Taken . | . . . . . Unknown Exits Taken 4 | 1 1 1 1 . Scrap Searched 1 | . . 1 . . Spaces Dug . | . . . . . Terrain Destroyed 120 | . . . 43 77 Melee . | . . . . . Projectile . | . . . . . AOE 120 | . . . 43 77 Terrain Rammed . | . . . . . Walls Destroyed . | . . . . . Machines Disabled . | . . . . . Actions | -11 -10 -10 -9 -8 --------- Run | Jun Mat Min Mat Mat Total 1074 | 67 330 197 344 136 Wait 40 | . 5 20 15 . Move 819 | 57 263 129 258 112 Hop . | . . . . . Pick Up 28 | . 13 2 9 4 Fast Attach 22 | 8 1 4 7 2 Attach 10 | . 1 3 1 5 Detach 4 | 2 . 2 . . Swap 5 | . 1 . 4 . Drop 13 | . 2 1 10 . Fire 131 | . 44 36 40 11 Melee . | . . . . . Ram . | . . . . . Kick 2 | . . . . 2 Crush . | . . . . . Escape Stasis . | . . . . . Rewire . | . . . . . Trap . | . . . . . Miscellaneous . | . . . . . Route ------- -11/Junkyard -10/Materials -10/Mines -9/Materials -8/Materials History --------- Turn | Location | Event 6 | -11/Junkyard | Discovered new exit (range 15) 85 | -11/Junkyard | Entered Materials 306 | -10/Materials | Build established: Mutant 674 | -10/Materials | Discovered new exit (range 9) 816 | -10/Materials | Entered Mines 931 | -10/Mines | Lost 5 parts (1p1n3w) 1131 | -10/Mines | Assembled infested the area 1136 | -10/Mines | Assisted by a Guerilla fighting off Assembled 1138 | -10/Mines | Found a damaged Exp. Sensor Array with a note attached 1143 | -10/Mines | Found Prototype Device 1178 | -10/Mines | Core integrity fell below 50% 1199 | -10/Mines | Discovered new exit (range 6) 1241 | -10/Mines | Entered Materials 1241 | -9/Materials | Evolved 2 slots: Propulsion x1, Utility x1 1598 | -9/Materials | Build established: Scavenger-Mutant 1798 | -9/Materials | Discovered new exit (range 18) 1863 | -9/Materials | Entered another Materials area 1863 | -8/Materials | Evolved 2 slots: Utility x2 2117 | -8/Materials | Core integrity fell below 50% 2125 | -8/Materials | Core integrity fell below 20% 2132 | -8/Materials | Destroyed by G-47 Trooper with Particle Gun Last Messages --------------- 02117_ Acquired Shotgun. 02119_ S-10 Pest destroyed. 02119_ Scanalyzer disabled. 02119_ K-01 Serf collects debris. 02121_ G-47 Trooper destroyed. 02121_ Y-45 Defender destroyed. 02121_ W-25 Informer sends out distress signal. 02122_ K-01 Serf collects debris. 02123_ U-05 Engineer builds a Wall. 02125_ Destroyed Wheel. 02126_ Mni. Grenade Launcher destroyed. 02127_ U-05 Engineer lays Concrete. 02128_ U-05 Engineer builds a Wall. 02128_ U-05 Engineer builds a Door. 02129_ W-25 Informer destroyed. 02129_ G-47 Trooper destroyed. 02129_ R-06 Scavenger destroyed. 02129_ G-47 Trooper destroyed. 02129_ Destroyed Lgt. Nuclear Core. 02130_ G-47 Trooper destroyed. Map ----- +----------------------------------------------------+ | | | | | | | | | | | | | | | | | | | | | ?????????????????????????????????????????????????? | | ?????????????????????????????????????????????????? | | ?????????????????????????????????????????????????? | | ?????????????????????????????????? ??????????????? | | ?????????????????????????????????? ??????????????? | | ?????????????????????????????????? ??????????????? | | ?????????????????????????????????? ??????????????? | | ??????????????????????????????????# ?????????????? | | ?????????????????????????????Y" ??# ?????????????? | | ???????????????????????????? ???# ?????????????? | | ????????????????????????????""#???# ## #?????????? | | ???????????????????????????S""#### ##????????? | | ????????????????????????###"" # g #????????? | | ??????????????? ????## """%""" #????????? | | ????????????????"" """ # """ "" #????????? | | ????????????????"" """ @ """ "" #????????? | | ????????????????"" """ %%%! Y ????????# | | ??????????????? # ?###### | | ?????????????# ! !!! ?# ??# ## | | ?????????????# !!!??# "" #?# # | | ?????????????# ] !????# "" ## #?# # | | ?????????????#########+######/### u ### ### # | | ????????????? k T" u # | | ????????????? " + | | ????????????? * # | | ??????????????# ############### = ##### # | | ????????????????????????????????##### ## #???# # | | ??????????????????????????????????###########?# ## | | ??????????????????????????????????????# #?# #? | | ??????????????????????????????????????# ### ## | | ??????????????????????????????????????# | | ??????????????????????????????????????# !###+## | | ??????????????????????????????????????# #?# | | ??????????????????????????????????????## ##?# "" | | ???????????????????????????????????????# #??# "" | | ???????????????????????????????????????# #??# "" | | ?????????????????????????????????####### #??# | | ?????????????????????????????????# # #??# | | ?????????????????????????????????# """ # ####### | | ?????????????????????????????????# "R" # | +----------------------------------------------------+ Best States ------------- Heat Dissipation 31 Energy Generation 14 Energy Capacity 275 Matter Stores 300 Matter Capacity 300 Sight Range 18 Terrain Scan Density 10 Utility Shielding 33 Evasion (%) 55 Recoil Reduction 2 Item Schematics ----------------- None Robot Schematics ------------------ None Fabricated ------------ Nothing Alien Tech Used ----------------- None Achievements -------------- None Challenges ------------ None Game ------ Seed HoverAblativeMachine Manual? 0 Play Time 00:13:01 Cumulative 405.0 hours Start 2023.10.09 @ 13:10:26 End 2023.10.09 @ 13:23:32 Sessions 1 Manual Loads 0 Difficulty Rogue Special Mode None Game No. 725 Rogue 570 Adventurer 148 Explorer 7 Win Type - Total 17 Types 15/0/1/1/0/0/0/0/0 Lore% 78 Gallery% 88 Achievement% 72 Wizard Run 0 Options --------- ASCII 0 Keyboard 0 Movement Numpad Keybinds 0 Fullscreen 2 Font 18/SmallcapsGlow Map View 76x50 Tactical HUD 1 Map Filters NONE Filters NONE Steam 1 RUN: c1e555d5-ecd1-4719-907a-ddcf3a8c997d